Cogmind - Beta 16.1 @@@ ROGUE MODE // 2026.01.24 @ 14:00:28 Player: szymekc Result: Destroyed by G-50 Soldier with Heavy Laser Performance ------------- Evolutions (4) 2000 Regions Visited (7) 1400 Robots Destroyed (0) 0 Value Destroyed (10) 10 Prototype IDs (0) 0 Alien Tech Used (0) 0 Bonus (1825) 1825 TOTAL SCORE: 5235 Bonus ------- Pacifist 1325 Entered DSFs 500 Cogmind --------- Core Integrity 0/850 Matter 280/300 Energy 100/100 System Corruption 1% Temperature Cool (6) Movement Core (50) Location -6/Factory Parts ------- > --- POWER (2) -------- (None) > --- PROPULSION (6) --- (None) > --- UTILITY (5) ------ Advanced Visual Processing Unit Enhanced Optical Array Advanced Terrain Scan Processor > --- WEAPON (2) ------- (None) > --- INVENTORY (5) ---- Hypervelocity Gauss Rifle Peak State ------------ > --- POWER ------------ (None) > --- PROPULSION ------- (None) > --- UTILITY ---------- Advanced Visual Processing Unit Enhanced Optical Array Advanced Sensor Array Improved Signal Interpreter Advanced Terrain Scan Processor > --- WEAPON ----------- (None) > --- INVENTORY -------- Hypervelocity Gauss Rifle [Rating: 20] Favorites ----------- Power Light Ion Engine Engine Light Ion Engine Propulsion Flight Unit Flight Unit Flight Unit Utility Advanced Visual Processing Unit Device Advanced Weight Redist. System Processor Advanced Visual Processing Unit Weapon Improved Datajack Ballistic Gun Hypervelocity Gauss Rifle Special Melee Weapon Improved Datajack Build | -11 -10 -10 -9 -8 -7 -7 -6 ------- Run | Yrd Mat Min Mat Mat Fac DSF Fac Slots Evolved 8 | . . . 2 2 2 . 2 Power 1 | . . . . . 1 . . Propulsion 4 | . . . 1 1 1 . 1 Utility 3 | . . . 1 1 . . 1 Weapon . | . . . . . . . . Parts Attached 23 | 1 1 1 . 8 3 2 7 Power 3 | 1 . . . 1 1 . . Engine 3 | 1 . . . 1 1 . . Core . | . . . . . . . . Reactor . | . . . . . . . . Propulsion 8 | . 1 . . 5 1 1 . Treads . | . . . . . . . . Leg . | . . . . . . . . Wheel . | . . . . . . . . Hover . | . . . . . . . . Flight 8 | . 1 . . 5 1 1 . Utility 10 | . . 1 . 2 1 1 5 Device 6 | . . 1 . 2 1 . 2 Storage . | . . . . . . . . Processor 4 | . . . . . . 1 3 Hackware . | . . . . . . . . Protection . | . . . . . . . . Artifact . | . . . . . . . . Weapon 2 | . . . . . . . 2 Energy Gun . | . . . . . . . . Energy Cannon . | . . . . . . . . Ballistic Gun 1 | . . . . . . . 1 Ballistic Cannon . | . . . . . . . . Launcher . | . . . . . . . . Special Weapon . | . . . . . . . . Impact Weapon . | . . . . . . . . Slashing Weapon . | . . . . . . . . Piercing Weapon . | . . . . . . . . Special Melee Weapon 1 | . . . . . . . 1 Unidentified Prototypes . | . . . . . . . . Parts Lost 17 | . 1 . . 5 . 6 5 Power 2 | . 1 . . . . 1 . Propulsion 8 | . . . . 2 . 5 1 Utility 6 | . . . . 3 . . 3 Weapon 1 | . . . . . . . 1 Highest Loss Streak 7 | . 1 . . 5 . 6 7 To Critical Strikes . | . . . . . . . . Average Backups . | . . . . . 1 . . Power . | . . . . . . . . Propulsion . | . . . . . 1 . . Utility . | . . . . . . . . Weapon . | . . . . . . . . Tool/Special . | . . . . . . . . Unused Backups . | . . . . . . . . Power . | . . . . . . . . Propulsion . | . . . . . . . . Utility . | . . . . . . . . Weapon . | . . . . . . . . Tool/Special . | . . . . . . . . Average Slot Usage (%) 28 | . 16 14 22 22 53 53 32 Engine 2 | . 12 . . . 11 11 . Flight 8 | . 4 14 11 12 38 28 . Device 8 | . . . 11 10 3 7 9 Processor 7 | . . . . . . 5 17 Special Melee Weapon 1 | . . . . . . . 3 Peak Build Rating 20 | 1 2 2 2 5 10 13 20 Average Rating 8 | . 1 1 2 2 8 10 16 On Entrance 3 | . 1 1 2 2 5 10 7 Avg Prop Armor Cover (%) . | . . . . . . . . Naked Turns . | . . . . . . . . Heaviest Build 6 | 3 3 1 1 3 6 6 2 Greatest Support 20 | 3 4 4 4 16 20 20 13 Greatest Overweight (x) . | . . . . . . . . Average Overweight (x) . | . . . . . . . . Largest Inventory Capacity 5 | 5 5 5 5 5 5 5 5 Average Capacity 5 | 5 5 5 5 5 5 5 5 Most Carried 3 | . . . . 3 2 1 1 Average Carried . | . . . . . 1 . . Final Capacity 5 | 5 5 5 5 5 5 5 5 Final Carried 3 | . . . . 3 1 . 1 Class Distribution -------------------- 52% | Scout 47% | Mutant Dominant Class ---------------- Mutant | -10/Materials Mutant | -10/Mines Mutant | -9/Materials Mutant | -8/Materials Mutant | -7/Factory Mutant | -7/DSF Scout | -6/Factory Resources | -11 -10 -10 -9 -8 -7 -7 -6 ----------- Run | Yrd Mat Min Mat Mat Fac DSF Fac Matter Collected 327 | 154 17 34 . 62 . . 60 Remotely . | . . . . . . . . Salvage Created . | . . . . . . . . Parts . | . . . . . . . . Haulers Intercepted . | . . . . . . . . Recyclers Shooed . | . . . . . . . . Parts Field Recycled . | . . . . . . . . Retrieved Matter . | . . . . . . . . Parts Self-Destructed . | . . . . . . . . Prevented . | . . . . . . . . Parts Restored . | . . . . . . . . Kills | -11 -10 -10 -9 -8 -7 -7 -6 ------- Run | Yrd Mat Min Mat Mat Fac DSF Fac Combat Hostiles Destroyed . | . . . . . . . . Classes Destroyed . | . . . . . . . . Best Kill Streak . | . . . . . . . . Combat Bots Only . | . . . . . . . . Max Kills in Single Turn . | . . . . . . . . Gunslinging . | . . . . . . . . Exploded . | . . . . . . . . Melee . | . . . . . . . . Uniques/NPCs Destroyed . | . . . . . . . . Combat | -11 -10 -10 -9 -8 -7 -7 -6 -------- Run | Yrd Mat Min Mat Mat Fac DSF Fac Hostile Shots Fired 237 | . 22 . 30 95 . 21 69 Missed 101 | . 8 . 18 42 . 10 23 Hits 136 | . 14 . 12 53 . 11 46 Melee 5 | . . . 1 . . 4 . Projectile 131 | . 14 . 11 53 . 7 46 AOE 2 | . . . . . . 1 1 Critical Strikes 5 | . . . 1 1 . 2 1 Damage Taken 2079 | . 110 . 120 563 . 299 987 Core 1600 | . 64 . 105 420 . 160 851 Absorbed by Shields 5 | . . . . . . . 5 Core Remaining (%) 69 | 100 . 74 73 23 . 77 . Volleys Fired . | . . . . . . . . Largest . | . . . . . . . . Hottest . | . . . . . . . . Shots Fired . | . . . . . . . . Gun . | . . . . . . . . Cannon . | . . . . . . . . Launcher . | . . . . . . . . Special . | . . . . . . . . Kinetic . | . . . . . . . . Thermal . | . . . . . . . . Explosive . | . . . . . . . . Electromagnetic . | . . . . . . . . Robot Hit Streak . | . . . . . . . . Robot Miss Streak . | . . . . . . . . Penetration Max . | . . . . . . . . Secondary Targets . | . . . . . . . . Shots Hit Robots 2 | . . . . . . . 2 Core Hits . | . . . . . . . . Critical Kills . | . . . . . . . . Critical Parts Destroyed . | . . . . . . . . Critical Strikes . | . . . . . . . . Melee Attacks 2 | . . . . . . . 2 Impact . | . . . . . . . . Slashing . | . . . . . . . . Piercing . | . . . . . . . . Sneak Attacks 2 | . . . . . . . 2 Combat Hostiles . | . . . . . . . . Follow-up Attacks . | . . . . . . . . Damage Inflicted 33 | . . . . . . . 33 Guns . | . . . . . . . . Cannons . | . . . . . . . . Explosions . | . . . . . . . . Melee . | . . . . . . . . Ramming 33 | . . . . . . . 33 Kinetic . | . . . . . . . . Thermal . | . . . . . . . . Explosive . | . . . . . . . . Electromagnetic . | . . . . . . . . Impact . | . . . . . . . . Slashing . | . . . . . . . . Piercing . | . . . . . . . . Highest Corruption 4 | . . . . . . 4 1 Average Corruption 1 | . . . . . . 4 1 Corruption Purged . | . . . . . . . . Corruption Blocked . | . . . . . . . . Effects 2 | . . . . . . 1 1 Message Errors 1 | . . . . . . 1 . Heat Flow Errors 1 | . . . . . . . 1 Overload Shots . | . . . . . . . . Overflow Damage . | . . . . . . . . Projectiles . | . . . . . . . . Explosions . | . . . . . . . . Melee . | . . . . . . . . Knockbacks . | . . . . . . . . Impact . | . . . . . . . . Kinetic . | . . . . . . . . Secondary . | . . . . . . . . Self-Inflicted Damage 27 | . . . . . . . 27 Shots . | . . . . . . . . Rammed 2 | . . . . . . . 2 Targets Rammed 2 | . . . . . . . 2 Kicked . | . . . . . . . . Crushed . | . . . . . . . . Highest Temperature 229 | . . . . . 1 . 229 Average Temperature 82 | . . . . . 1 . 118 Received Heat Transfer 234 | . . . 27 72 . . 135 Siege Activations . | . . . . . . . . Martial Activations . | . . . . . . . . Shielding Activations . | . . . . . . . . Robots Disrupted . | . . . . . . . . Combat Hostiles . | . . . . . . . . Robots Corrupted . | . . . . . . . . Combat Hostiles . | . . . . . . . . Parts Fried . | . . . . . . . . Impact Corruptions . | . . . . . . . . Robots Melted . | . . . . . . . . Combat Hostiles . | . . . . . . . . Parts Melted . | . . . . . . . . Heat Transferred . | . . . . . . . . Parts Sabotaged . | . . . . . . . . Parts Stolen . | . . . . . . . . Parts Stripped . | . . . . . . . . Power Chain Reactions . | . . . . . . . . Alert | -11 -10 -10 -9 -8 -7 -7 -6 ------- Run | Yrd Mat Min Mat Mat Fac DSF Fac Maximum Alert Level . | . . . . . . . . Low Security (%) 100 | 100 100 100 100 100 100 100 100 Level 1 . | . . . . . . . . Level 2 . | . . . . . . . . Level 3 . | . . . . . . . . Level 4 . | . . . . . . . . Level 5 . | . . . . . . . . High Security . | . . . . . . . . Max Security . | . . . . . . . . Peak Influence 56 | . . . 15 56 . 3 15 Initial 3 | . . . . 1 . 3 . Average 6 | . . . 1 24 . 1 . Influence Increases 138 | . . . 15 88 5 . 30 Successful Hack 18 | . . . . 13 5 . . Disable Machine 15 | . . . . . . . 15 Partial Spotted 45 | . . . . 45 . . . Lose Combat Pursuer 60 | . . . 15 30 . . 15 Influence Decreases 138 | . . . 10 93 . 5 30 Entered New Map 6 | . . . . 4 . 2 . Time Decay 75 | . . . 10 50 . . 15 Lost Part 57 | . . . . 39 . 3 15 Squads Dispatched 6 | . . . . 2 . 1 3 Investigation . | . . . . . . . . Extermination 1 | . . . . . . . 1 Reinforcement 5 | . . . . 2 . 1 2 Assault . | . . . . . . . . Garrison . | . . . . . . . . Intercept . | . . . . . . . . Searches Triggered . | . . . . . . . . Construction Impeded . | . . . . . . . . Haulers Reinforced . | . . . . . . . . Active Scanning Responses . | . . . . . . . . Cargo Convoy Interrupts . | . . . . . . . . Stealth | -11 -10 -10 -9 -8 -7 -7 -6 --------- Run | Yrd Mat Min Mat Mat Fac DSF Fac Distress Signals 4 | . . . 2 2 . . . Communications Jammed . | . . . . . . . . Distress Signals . | . . . . . . . . Times Spotted 60 | . 4 . 16 20 . 6 14 Peak Tracking Total 15 | . 3 . 15 13 . 6 8 Tactical Retreats 4 | . . . 1 2 . . 1 Traps | -11 -10 -10 -9 -8 -7 -7 -6 ------- Run | Yrd Mat Min Mat Mat Fac DSF Fac Traps Triggered 2 | . . . . 1 . . 1 Indirectly . | . . . . . . . . Trap Hack Attempts . | . . . . . . . . Triggered . | . . . . . . . . Disarmed . | . . . . . . . . Reprogrammed . | . . . . . . . . Reused . | . . . . . . . . Traps Extracted . | . . . . . . . . Installed . | . . . . . . . . Triggered . | . . . . . . . . Machines | -11 -10 -10 -9 -8 -7 -7 -6 ---------- Run | Yrd Mat Min Mat Mat Fac DSF Fac Machines Disabled 1 | . . . . . . . 1 Max in Single Turn 1 | . . . . . . . 1 Machines Repaired . | . . . . . . . . Machines Dismantled . | . . . . . . . . Machines Sabotaged . | . . . . . . . . Overloaded Fab Kills . | . . . . . . . . Hacking | -11 -10 -10 -9 -8 -7 -7 -6 --------- Run | Yrd Mat Min Mat Mat Fac DSF Fac Machines Accessed 11 | . 3 . 1 3 1 . 3 Terminals 10 | . 3 . 1 3 1 . 2 Fabricators 1 | . . . . . . . 1 Repair Stations . | . . . . . . . . Recycling Units . | . . . . . . . . Scanalyzers . | . . . . . . . . Garrison Access . | . . . . . . . . Total Hacks 17 | . 3 . 2 8 1 . 3 Successful 4 | . . . . 2 1 . 1 Failed 13 | . 3 . 2 6 . . 2 Catastrophic 6 | . 2 . . 2 . . 2 Database Lockouts . | . . . . . . . . Manual 11 | . 3 . 2 6 . . . Terminals 16 | . 3 . 2 8 1 . 2 Fabricators 1 | . . . . . . . 1 Repair Stations . | . . . . . . . . Recycling Units . | . . . . . . . . Scanalyzers . | . . . . . . . . Garrison Access . | . . . . . . . . Terminal Hacks 3 | . . . . 1 1 . 1 Open DSF 2 | . . . . . 1 . 1 Level Access Points 1 | . . . . 1 . . . Fabricator Hacks . | . . . . . . . . Repair Station Hacks . | . . . . . . . . Recycling Unit Hacks . | . . . . . . . . Scanalyzer . | . . . . . . . . Garrison Access Hacks . | . . . . . . . . Unauthorized Hacks 1 | . . . . 1 . . . Terminals 1 | . . . . 1 . . . Botnet 1 | . . . . 1 . . . Fabricators . | . . . . . . . . Repair Stations . | . . . . . . . . Recycling Units . | . . . . . . . . Scanalyzers . | . . . . . . . . Garrison Access . | . . . . . . . . Data Cores Recovered . | . . . . . . . . Used . | . . . . . . . . Hacking Detections 9 | . 2 . 1 3 . . 3 Full Trace Events . | . . . . . . . . Feedback Events . | . . . . . . . . Feedback Blocked . | . . . . . . . . Robot Schematics Acquired . | . . . . . . . . Robots Built . | . . . . . . . . Authchips . | . . . . . . . . Time . | . . . . . . . . Total Robot Build Rating . | . . . . . . . . Part Schematics Acquired . | . . . . . . . . Parts Built . | . . . . . . . . Authchips . | . . . . . . . . Time . | . . . . . . . . Total Part Build Rating . | . . . . . . . . Part Studies Acquired . | . . . . . . . . Parts Repaired . | . . . . . . . . Time . | . . . . . . . . Parts Recycled . | . . . . . . . . Recycled Matter . | . . . . . . . . Retrieved Matter . | . . . . . . . . Retrieved Components . | . . . . . . . . Parts Scanalyzed . | . . . . . . . . Part Schematics Acquired . | . . . . . . . . Parts Damaged . | . . . . . . . . Bothacking | -11 -10 -10 -9 -8 -7 -7 -6 ------------ Run | Yrd Mat Min Mat Mat Fac DSF Fac Used RIF Installer . | . . . . . . . . Robots Hacked 2 | . . . . . . . 2 Non-combat 2 | . . . . . . . 2 Combat . | . . . . . . . . Robot Hacks Applied 2 | . . . . . . . 2 find_chute 2 | . . . . . . . 2 Relay Couplers Released . | . . . . . . . . Fabnet Peak Effective % . | . . . . . . . . Robots Rewired . | . . . . . . . . Allies Hacked . | . . . . . . . . Hacks Repelled . | . . . . . . . . Allies | -11 -10 -10 -9 -8 -7 -7 -6 -------- Run | Yrd Mat Min Mat Mat Fac DSF Fac Total Allies . | . . . . . . . . Largest Group . | . . . . . . . . Highest-Rated Group . | . . . . . . . . Highest-Rated Ally . | . . . . . . . . Total Orders . | . . . . . . . . Ally Attacks . | . . . . . . . . Total Damage . | . . . . . . . . Kills . | . . . . . . . . Allies Corrupted . | . . . . . . . . Allies Melted . | . . . . . . . . Intel | -11 -10 -10 -9 -8 -7 -7 -6 ------- Run | Yrd Mat Min Mat Mat Fac DSF Fac Active Infowar (turns) 287 | . . . . 34 . 29 224 Optics 103 | . . . . . . 29 74 Sensors 186 | . . . . . . . 186 Seismic 34 | . . . . 34 . . . Robot Analysis Total . | . . . . . . . . Derelict Logs Recovered . | . . . . . . . . Drone Launches . | . . . . . . . . Drone Recoveries . | . . . . . . . . Exploration | -11 -10 -10 -9 -8 -7 -7 -6 ------------- Run | Yrd Mat Min Mat Mat Fac DSF Fac Turns Passed 553 | 14 61 11 50 133 13 31 240 Spaces Moved 1155 | 24 130 24 124 291 33 83 446 Core 578 | 24 72 . . 59 . . 423 Treads . | . . . . . . . . Legs . | . . . . . . . . Wheels . | . . . . . . . . Hover . | . . . . . . . . Flight 577 | . 58 24 124 232 33 83 23 Fastest Speed 28 | 50 40 40 40 31 28 28 40 Average Speed 43 | 50 45 40 40 40 28 32 49 Slowest Speed 50 | 50 50 40 40 50 28 40 50 Overloaded Moves . | . . . . . . . . Propulsion Burnouts . | . . . . . . . . Robots Hopped 10 | . . . 3 6 . 1 . Potential Cave-ins . | . . . . . . . . Cave-ins Triggered . | . . . . . . . . Exploration Rate (%) 27 | 3 32 15 26 41 1 86 18 Regions Visited 7 Branch Regions 1 Pre-discovered Areas . | . . . . . . . . Known Exits Taken 2 | . . . . 1 1 . . Unknown Exits Taken 4 | 1 1 1 1 . . . . Scrap Searched 1 | . . 1 . . . . . Spaces Dug . | . . . . . . . . Terrain Destroyed . | . . . . . . . . Melee . | . . . . . . . . Projectile . | . . . . . . . . AOE . | . . . . . . . . Terrain Rammed 1 | . . . . . . . 1 Walls Destroyed . | . . . . . . . . Machines Disabled 1 | . . . . . . . 1 Actions | -11 -10 -10 -9 -8 -7 -7 -6 --------- Run | Yrd Mat Min Mat Mat Fac DSF Fac Total 1175 | 24 130 24 120 295 35 84 463 Wait . | . . . . . . . . Move 1128 | 23 129 23 117 278 32 80 446 Hop 10 | . . . 3 6 . 1 . Pick Up 3 | . . . . 3 . . . Fast Attach 20 | 1 1 1 . 8 1 2 6 Attach 3 | . . . . . 2 1 . Detach 1 | . . . . . . . 1 Swap 1 | . . . . . . . 1 Drop . | . . . . . . . . Fire . | . . . . . . . . Melee 2 | . . . . . . . 2 Ram 3 | . . . . . . . 3 Kick . | . . . . . . . . Crush . | . . . . . . . . Escape Stasis 2 | . . . . . . . 2 Rewire 2 | . . . . . . . 2 Trap . | . . . . . . . . Miscellaneous . | . . . . . . . . Route ------- -11/Scrapyard -10/Materials -10/Mines -9/Materials -8/Materials (discovered 3 exits: *Fac x3) -7/Factory -7/DSF -6/Factory History --------- Turn | Location | Event 7 | -11/Scrapyard | Discovered new exit (range 15) 15 | -11/Scrapyard | Entered Materials 71 | -10/Materials | Discovered new exit (range 14) 76 | -10/Materials | Entered Mines 82 | -10/Mines | Discovered new exit (range 13) 87 | -10/Mines | Entered Materials 87 | -9/Materials | Evolved 2 slots: Propulsion x1, Utility x1 131 | -9/Materials | Discovered new exit (range 16) 137 | -9/Materials | Entered another Materials area 137 | -8/Materials | Evolved 2 slots: Propulsion x1, Utility x1 179 | -8/Materials | Identified exit to Factory 243 | -8/Materials | Core integrity fell below 50% 270 | -8/Materials | Entered Factory 270 | -7/Factory | Evolved 2 slots: Power x1, Propulsion x1 276 | -7/Factory | Lost 5 parts (2n3u) 283 | -7/Factory | Identified exit to DSF 283 | -7/Factory | Entered DSF 296 | -7/DSF | Additional patrols routed to DSF 306 | -7/DSF | Discovered new exit (range 18) 314 | -7/DSF | Entered Factory 314 | -6/Factory | Evolved 2 slots: Propulsion x1, Utility x1 355 | -6/Factory | Lost 7 parts (1p6n) 505 | -6/Factory | Core integrity fell below 50% 547 | -6/Factory | Core integrity fell below 20% 551 | -6/Factory | Spotted B-75 Beast 554 | -6/Factory | Destroyed by G-50 Soldier with Heavy Laser Last Messages --------------- 00488_ U-05 Engineer lays Concrete. 00490_ Acquired Enh. Optical Array. 00498_ U-05 Engineer builds a Wall. 00508_ Acquired Adv. Sensor Array. 00516_ ALERT: Hostiles spotted, dispatching reinforcements to Terminal F015. 00516_ M-28 Smith repairs S-27 Virus Autogun. 00527_ O-24 Administrator: "IFF HANDSHAKE FAILED. SECURING TERMINAL." 00529_ O-24 Administrator uses terminal to summon reinforcements. 00529_ ALERT: Hostiles spotted, dispatching reinforcements to Terminal F002. 00529_ O-24 Administrator locks terminal. 00539_ Imp. Signal Interpreter destroyed. 00544_ Adv. Sensor Array destroyed. 00552_ K-01 Serf cleans the Fusion Modulator. 00553_ Triggered Stasis Trap. 00553_ A bubble of rippling energy engulfs the area. 00553_ Field strength at 94. 00553_ Field strength at 88. 00554_ Field strength at 82. Map ----- +----------------------------------------------------+ | ?????????????????????????????????????????????????? | | ?????????????????????????????????????????????????? | | ?????????????????????????????????????????????????? | | ?????????????????????????????????????????????????? | | ????????????????????????? ??????????????????????? | | ????????????????????????? ??????????????????????? | | ????????????????????????? ??????????????????????? | | ????????????????????????? "?????????????????????? | | ????????????????????????? "?????????????????????? | | ????????????????????????? "?????????????????????? | | ????????????????????????? ?????????????????????? | | ????????????????????????? "?????????????????????? | | ????????????????????????? ""????????????????????? | | ????????????????????????? ""????????????????????? | | ????????????????????????# ?? ? #???????????? | | ????????????????????????# """ #???????????? | | ????????????????????????# """ #???????????? | | ????????????????????????# """ #???????????? | | ????????????????????????# #???????????? | | ????????????????????????# """ #???????????? | | ????????????????????????# """ #????#??????? | | ??????????????########??# """^ #### ###????? | | ??????????????# ?# k /????? | | ??????????????# """ # """ #????? | | ??????????????# """ # ^""" #????? | | ??????????????# """ t@ """ #????? | | ??????????????# !** # R #????? | | ??????????????# !*??# #### ?????????? | | ??????????????# ????# #?????????????? | | ??????????????# ??????# #?????????????? | | ??????????????##????????# ;BB# #?????????????? | | ????????????????????????# #BB#?#?????????????? | | ????????????????????????# k####???????????????? | | ????????????????????????# #??????????????????? | | ???????????????#######??# #??????????????????? | | ???????????????# ?# #??????????????????? | | ???????????????# """?# #??????????????????? | | ???????????????# """ # #??????????????????? | | ???????????????# " """ #gg #????????? ?????? | | ???????????????# "" +g +????????? ?????? | | ???????????????# G """ # g #???????? ?????? | | ???????????????# "" """ # #???????? #????? | | ???????????????# " """?# s #???????? #????? | | ???????????????? ??#g #???????? #????? | | ???????????????######???# #???????? #????? | | ????????????????????????# #?????+## #????? | | ????????????????????????# #????? ^ #????? | | ????????????????????????# #????? #????? | | ????????????????????????# #????#" #????? | | ?????????????????######## #????#" #????? | +----------------------------------------------------+ Best States ------------- Heat Dissipation 41 Energy Generation 15 Energy Capacity 150 Matter Stores 300 Matter Capacity 300 Sight Range 22 Robot Scan Range 16 Terrain Scan Density 210 Additional Mass Support 9 Evasion (%) 64 Item Schematics ----------------- None Robot Schematics ------------------ None Fabricated ------------ Nothing Repaired ---------- Nothing Studied --------- None Alien Tech Used ----------------- None Achievements -------------- None Challenges ------------ None Game ------ Seed PowerSmartEngine Manual? 0 Play Time 00:12:05 Cumulative 1108.3 hours Start 2026.01.24 @ 13:51:28 End 2026.01.24 @ 14:00:28 Sessions 1 Manual Loads 0 Difficulty Rogue Special Mode None Game No. 335 Rogue 333 Adventurer 2 Explorer 0 Win Type - Total 81 Types 21/19/19/1/1/1/14/2/1/2 Lore% 97 Gallery% 95 Achievement% 85 Wizard Run 0 Options --------- Layout 0 ASCII 0 Keyboard 1 Movement Numpad Keybinds 0 Fullscreen 1 Font 24/Smallcaps Map View 76x50 Zoom Use 0% Tactical HUD 1 Map Filters NONE Filters NONE Steam 1 RUN: 414feed3-2b5f-4d8e-86cd-0a0e005340cf